[Event "Titled Tuesday Blitz May 31 Late 2022"]
[White "Jeet, Jain"]
[Black "Zakarian, David"]
[WhiteFideId "5073022"]
[BlackFideId "13301276"]
[WhiteElo "2028"]
[BlackElo "2460"]
[Result "1-0"]
[Round "11"]
[TimeControl "180+1"]
[Date "2022.06.01"]
[WhiteClock "0:00:20"]
[BlackClock "0:00:10"]

1. e4 {[%clk 0:03:00]}  c5 {[%clk 0:02:59]} 2. Nc3 {[%clk 0:02:56]}  a6 {[%clk 0:02:58]} 3. a4 {[%clk 0:02:53]}  e6 {[%clk 0:02:55]} 4. Nf3 {[%clk 0:02:51]}  Nc6 {[%clk 0:02:53]} 5. d4 {[%clk 0:02:39]}  cxd4 {[%clk 0:02:54]} 6. Nxd4 {[%clk 0:02:40]}  Qc7 {[%clk 0:02:52]} 7. Be2 {[%clk 0:02:32]}  Nf6 {[%clk 0:02:49]} 8. O-O {[%clk 0:02:31]}  Bc5 {[%clk 0:02:46]} 9. Nb3 {[%clk 0:02:29]}  Bd6 {[%clk 0:02:44]} 10. g3 {[%clk 0:02:27]}  h5 {[%clk 0:02:40]} 11. f4 {[%clk 0:02:23]}  Bb4 {[%clk 0:02:22]} 12. e5 {[%clk 0:02:21]}  Ng4 {[%clk 0:01:50]} 13. Ne4 {[%clk 0:02:13]}  Qb6+ {[%clk 0:01:43]} 14. Kg2 {[%clk 0:02:07]}  Ne3+ {[%clk 0:01:41]} 15. Bxe3 {[%clk 0:02:07]}  Qxe3 {[%clk 0:01:41]} 16. Qd3 {[%clk 0:02:05]}  Qxd3 {[%clk 0:01:37]} 17. cxd3 {[%clk 0:02:02]}  b6 {[%clk 0:01:35]} 18. d4 {[%clk 0:01:54]}  Bb7 {[%clk 0:01:32]} 19. Bf3 {[%clk 0:01:54]}  Ke7 {[%clk 0:01:28]} 20. h3 {[%clk 0:01:49]}  h4 {[%clk 0:01:17]} 21. g4 {[%clk 0:01:49]}  Rac8 {[%clk 0:01:08]} 22. f5 {[%clk 0:01:46]}  f6 {[%clk 0:01:05]} 23. exf6+ {[%clk 0:01:41]}  gxf6 {[%clk 0:01:06]} 24. fxe6 {[%clk 0:01:40]}  dxe6 {[%clk 0:01:07]} 25. Rad1 {[%clk 0:01:36]}  Rhd8 {[%clk 0:01:00]} 26. Rf2 {[%clk 0:01:29]}  Na5 {[%clk 0:00:55]} 27. Nxa5 {[%clk 0:01:26]}  Bxa5 {[%clk 0:00:56]} 28. Nxf6 {[%clk 0:01:11]}  Bxf3+ {[%clk 0:00:51]} 29. Rxf3 {[%clk 0:01:12]}  Rc2+ {[%clk 0:00:50]} 30. Kh1 {[%clk 0:01:09]}  Rxb2 {[%clk 0:00:48]} 31. d5 {[%clk 0:01:06]}  b5 {[%clk 0:00:37]} 32. axb5 {[%clk 0:01:02]}  axb5 {[%clk 0:00:38]} 33. d6+ {[%clk 0:00:47]}  Rxd6 {[%clk 0:00:30]} 34. Ng8+ {[%clk 0:00:47]}  Kd7 {[%clk 0:00:30]} 35. Rf7+ {[%clk 0:00:47]}  Kc6 {[%clk 0:00:29]} 36. Ne7+ {[%clk 0:00:47]}  Kc5 {[%clk 0:00:26]} 37. Rc1+ {[%clk 0:00:45]}  Kb4 {[%clk 0:00:20]} 38. Nc6+ {[%clk 0:00:41]}  Ka3 {[%clk 0:00:13]} 39. Ra1+ {[%clk 0:00:20]}  Ra2 {[%clk 0:00:11]} 40. Rxa2+ {[%clk 0:00:19]}  Kxa2 {[%clk 0:00:12]} 41. Nxa5 {[%clk 0:00:20]}  b4 {[%clk 0:00:12]} 42. Rf2+ {[%clk 0:00:19]}  Ka1 {[%clk 0:00:11]} 43. Rf1+ {[%clk 0:00:19]}  Ka2 {[%clk 0:00:11]} 44. Rf2+ {[%clk 0:00:20]}  Ka1 {[%clk 0:00:10]} 45. Kg2 {[%clk 0:00:20]}  Rd3 {[%clk 0:00:09]} 46. Rf3 {[%clk 0:00:19]}  Rd2+ {[%clk 0:00:09]} 47. Kf1 {[%clk 0:00:20]}  Rh2 {[%clk 0:00:08]} 48. Re3 {[%clk 0:00:20]}  Kb2 {[%clk 0:00:08]} 49. Nc4+ {[%clk 0:00:19]}  Kc2 {[%clk 0:00:08]} 50. Na5 {[%clk 0:00:17]}  Kd2 {[%clk 0:00:07]} 51. Rb3 {[%clk 0:00:18]}  Rh1+ {[%clk 0:00:07]} 52. Kg2 {[%clk 0:00:18]}  Re1 {[%clk 0:00:08]} 53. Rxb4 {[%clk 0:00:18]}  e5 {[%clk 0:00:09]} 54. Nc4+ {[%clk 0:00:17]}  Kc3 {[%clk 0:00:09]} 55. Ra4 {[%clk 0:00:18]}  Kb3 {[%clk 0:00:08]} 56. Nb6 {[%clk 0:00:17]}  e4 {[%clk 0:00:09]} 57. Ra5 {[%clk 0:00:17]}  e3 {[%clk 0:00:09]} 58. Re5 {[%clk 0:00:17]}  Kc3 {[%clk 0:00:09]} 59. Nd5+ {[%clk 0:00:17]}  Kd3 {[%clk 0:00:09]} 60. Rxe3+ {[%clk 0:00:18]}  Rxe3 {[%clk 0:00:09]} 61. Nxe3 {[%clk 0:00:19]}  Kxe3 {[%clk 0:00:10]} 62. g5 {[%clk 0:00:19]}  Kf4 {[%clk 0:00:10]} 63. g6 {[%clk 0:00:20]} 1-0


[Site "https://www.chess.com"]

[Event "Titled Tuesday Blitz May 31 Late 2022"]
[White "Joubert, Dantelle"]
[Black "Kohler, Aran"]
[WhiteFideId "14310813"]
[BlackFideId "1002856"]
[WhiteElo "1507"]
[BlackElo "2252"]
[Result "1-0"]
[Round "11"]
[TimeControl "180+1"]
[Date "2022.06.01"]
[WhiteClock "0:00:29"]
[BlackClock "0:00:08"]

1. Nf3 {[%clk 0:02:31]}  c5 {[%clk 0:02:58]} 2. c4 {[%clk 0:02:31]}  Nc6 {[%clk 0:02:57]} 3. Nc3 {[%clk 0:02:30]}  g6 {[%clk 0:02:54]} 4. g3 {[%clk 0:02:29]}  Bg7 {[%clk 0:02:54]} 5. Bg2 {[%clk 0:02:29]}  e6 {[%clk 0:02:55]} 6. O-O {[%clk 0:02:29]}  Nge7 {[%clk 0:02:55]} 7. e3 {[%clk 0:02:29]}  d5 {[%clk 0:02:52]} 8. cxd5 {[%clk 0:02:28]}  exd5 {[%clk 0:02:53]} 9. d4 {[%clk 0:02:27]}  c4 {[%clk 0:02:51]} 10. b3 {[%clk 0:02:20]}  cxb3 {[%clk 0:02:42]} 11. axb3 {[%clk 0:02:20]}  O-O {[%clk 0:02:42]} 12. Ba3 {[%clk 0:02:15]}  Re8 {[%clk 0:02:40]} 13. h3 {[%clk 0:01:57]}  h6 {[%clk 0:02:21]} 14. Nb5 {[%clk 0:01:54]}  a6 {[%clk 0:01:58]} 15. Nd6 {[%clk 0:01:51]}  Rf8 {[%clk 0:01:58]} 16. Qd2 {[%clk 0:01:42]}  b5 {[%clk 0:01:45]} 17. Nxc8 {[%clk 0:01:40]}  Rxc8 {[%clk 0:01:44]} 18. Bc5 {[%clk 0:01:39]}  a5 {[%clk 0:01:39]} 19. Ne1 {[%clk 0:01:36]}  b4 {[%clk 0:01:38]} 20. Nd3 {[%clk 0:01:30]}  Re8 {[%clk 0:01:36]} 21. Rfc1 {[%clk 0:01:28]}  Nf5 {[%clk 0:01:30]} 22. Nf4 {[%clk 0:01:23]}  Nce7 {[%clk 0:01:19]} 23. Bf1 {[%clk 0:01:12]}  Nd6 {[%clk 0:00:53]} 24. Bxd6 {[%clk 0:01:02]}  Qxd6 {[%clk 0:00:48]} 25. Rxa5 {[%clk 0:01:01]}  Rxc1 {[%clk 0:00:42]} 26. Qxc1 {[%clk 0:01:00]}  Rc8 {[%clk 0:00:25]} 27. Rc5 {[%clk 0:00:58]}  Rxc5 {[%clk 0:00:24]} 28. Qxc5 {[%clk 0:00:58]}  Qxc5 {[%clk 0:00:22]} 29. dxc5 {[%clk 0:00:58]}  d4 {[%clk 0:00:23]} 30. exd4 {[%clk 0:00:54]}  Bxd4 {[%clk 0:00:23]} 31. Bb5 {[%clk 0:00:54]}  Bxc5 {[%clk 0:00:22]} 32. Kf1 {[%clk 0:00:50]}  Kg7 {[%clk 0:00:20]} 33. Ke2 {[%clk 0:00:47]}  Nf5 {[%clk 0:00:18]} 34. Bc4 {[%clk 0:00:43]}  Nd4+ {[%clk 0:00:18]} 35. Ke1 {[%clk 0:00:41]}  g5 {[%clk 0:00:19]} 36. Nd3 {[%clk 0:00:40]}  f6 {[%clk 0:00:18]} 37. Nxc5 {[%clk 0:00:40]}  Nc2+ {[%clk 0:00:17]} 38. Kd2 {[%clk 0:00:39]}  Nd4 {[%clk 0:00:17]} 39. Kd3 {[%clk 0:00:39]}  Nc6 {[%clk 0:00:17]} 40. Ke4 {[%clk 0:00:36]}  Kg6 {[%clk 0:00:17]} 41. Kd5 {[%clk 0:00:37]}  Ne5 {[%clk 0:00:17]} 42. Nd3 {[%clk 0:00:36]}  Nf3 {[%clk 0:00:11]} 43. Nxb4 {[%clk 0:00:35]}  f5 {[%clk 0:00:11]} 44. Bd3 {[%clk 0:00:33]}  Kf6 {[%clk 0:00:11]} 45. Nc6 {[%clk 0:00:33]}  f4 {[%clk 0:00:10]} 46. Nd4 {[%clk 0:00:32]}  Nd2 {[%clk 0:00:08]} 47. gxf4 {[%clk 0:00:29]}  gxf4 {[%clk 0:00:08]} 48. b4 {[%clk 0:00:29]} 1-0


[Site "https://www.chess.com"]

[Event "Titled Tuesday Blitz May 31 Late 2022"]
[White "Kollars, Dmitrij"]
[Black "Shirov, Alexei"]
[WhiteFideId "12909572"]
[BlackFideId "2209390"]
[WhiteElo "2584"]
[BlackElo "2678"]
[Result "0-1"]
[Round "11"]
[TimeControl "180+1"]
[Date "2022.05.31"]
[WhiteClock "0:00:06"]
[BlackClock "0:00:29"]

1. d4 {[%clk 0:03:00]}  d5 {[%clk 0:03:00]} 2. c4 {[%clk 0:03:00]}  c6 {[%clk 0:03:00]} 3. Nf3 {[%clk 0:02:59]}  Nf6 {[%clk 0:03:00]} 4. Nc3 {[%clk 0:03:00]}  e6 {[%clk 0:03:00]} 5. e3 {[%clk 0:02:56]}  Nbd7 {[%clk 0:02:59]} 6. Qc2 {[%clk 0:02:53]}  Bd6 {[%clk 0:02:59]} 7. b3 {[%clk 0:02:50]}  O-O {[%clk 0:02:57]} 8. Be2 {[%clk 0:02:49]}  b6 {[%clk 0:02:50]} 9. O-O {[%clk 0:02:47]}  Bb7 {[%clk 0:02:50]} 10. Bb2 {[%clk 0:02:48]}  Qe7 {[%clk 0:02:48]} 11. a4 {[%clk 0:02:46]}  a6 {[%clk 0:02:35]} 12. Rad1 {[%clk 0:02:31]}  Rfe8 {[%clk 0:02:32]} 13. e4 {[%clk 0:02:27]}  Nxe4 {[%clk 0:02:31]} 14. Nxe4 {[%clk 0:02:27]}  dxe4 {[%clk 0:02:31]} 15. Qxe4 {[%clk 0:02:28]}  Nf6 {[%clk 0:02:30]} 16. Qh4 {[%clk 0:02:26]}  c5 {[%clk 0:02:27]} 17. Ne5 {[%clk 0:02:18]}  cxd4 {[%clk 0:02:21]} 18. Bxd4 {[%clk 0:02:17]}  Bc5 {[%clk 0:02:18]} 19. Bb2 {[%clk 0:01:56]}  Rad8 {[%clk 0:02:09]} 20. Bd3 {[%clk 0:01:47]}  h6 {[%clk 0:02:02]} 21. Qg3 {[%clk 0:01:46]}  Nh5 {[%clk 0:01:57]} 22. Qg4 {[%clk 0:01:39]}  Qg5 {[%clk 0:01:53]} 23. Qxg5 {[%clk 0:01:24]}  hxg5 {[%clk 0:01:52]} 24. g3 {[%clk 0:01:25]}  Nf6 {[%clk 0:01:44]} 25. Rfe1 {[%clk 0:01:12]}  Ne4 {[%clk 0:01:17]} 26. Bxe4 {[%clk 0:01:04]}  Rxd1 {[%clk 0:01:16]} 27. Rxd1 {[%clk 0:01:05]}  Bxe4 {[%clk 0:01:16]} 28. Rd2 {[%clk 0:00:50]}  f6 {[%clk 0:01:13]} 29. Nd7 {[%clk 0:00:51]}  Bb4 {[%clk 0:01:09]} 30. Re2 {[%clk 0:00:44]}  Bf3 {[%clk 0:01:08]} 31. Re3 {[%clk 0:00:34]}  Bc6 {[%clk 0:01:08]} 32. Nxb6 {[%clk 0:00:22]}  Bc5 {[%clk 0:01:08]} 33. a5 {[%clk 0:00:17]}  Rd8 {[%clk 0:00:57]} 34. Re1 {[%clk 0:00:16]}  Rd2 {[%clk 0:00:57]} 35. Bc1 {[%clk 0:00:15]}  Bxf2+ {[%clk 0:00:54]} 36. Kf1 {[%clk 0:00:14]}  Bxe1 {[%clk 0:00:54]} 37. Kxe1 {[%clk 0:00:14]}  Rxh2 {[%clk 0:00:54]} 38. b4 {[%clk 0:00:13]}  Kf7 {[%clk 0:00:54]} 39. Be3 {[%clk 0:00:11]}  Rb2 {[%clk 0:00:51]} 40. Bc5 {[%clk 0:00:11]}  e5 {[%clk 0:00:50]} 41. Nc8 {[%clk 0:00:10]}  Ke6 {[%clk 0:00:49]} 42. Nd6 {[%clk 0:00:11]}  f5 {[%clk 0:00:45]} 43. Kd1 {[%clk 0:00:11]}  f4 {[%clk 0:00:42]} 44. Kc1 {[%clk 0:00:11]}  Rb3 {[%clk 0:00:38]} 45. gxf4 {[%clk 0:00:10]}  exf4 {[%clk 0:00:37]} 46. Kc2 {[%clk 0:00:10]}  Ba4 {[%clk 0:00:36]} 47. Kd2 {[%clk 0:00:08]}  g4 {[%clk 0:00:36]} 48. Ne4 {[%clk 0:00:07]}  g3 {[%clk 0:00:34]} 49. Bb6 {[%clk 0:00:06]}  Kf5 {[%clk 0:00:30]} 50. Nc5 {[%clk 0:00:06]}  Rxb4 {[%clk 0:00:30]} 51. Kc3 {[%clk 0:00:06]}  Rxb6 {[%clk 0:00:29]} 52. axb6 {[%clk 0:00:06]}  Bc6 {[%clk 0:00:29]} 0-1


[Site "https://www.chess.com"]

[Event "Titled Tuesday Blitz May 31 Late 2022"]
[White "Kraus, Tomas"]
[Black "hakki1"]
[WhiteFideId "331708"]
[WhiteElo "2389"]
[BlackElo "2433"]
[Result "0-1"]
[Round "11"]
[TimeControl "180+1"]
[Date "2022.06.01"]
[WhiteClock "0:00:42"]
[BlackClock "0:00:30"]

1. e4 {[%clk 0:02:58]}  Nf6 {[%clk 0:02:59]} 2. e5 {[%clk 0:02:56]}  Nd5 {[%clk 0:02:58]} 3. d4 {[%clk 0:02:57]}  d6 {[%clk 0:02:58]} 4. Nf3 {[%clk 0:02:58]}  g6 {[%clk 0:02:57]} 5. Bc4 {[%clk 0:02:57]}  c6 {[%clk 0:02:58]} 6. O-O {[%clk 0:02:56]}  Bg7 {[%clk 0:02:58]} 7. h3 {[%clk 0:02:56]}  O-O {[%clk 0:02:58]} 8. Re1 {[%clk 0:02:56]}  dxe5 {[%clk 0:02:54]} 9. dxe5 {[%clk 0:02:55]}  e6 {[%clk 0:02:52]} 10. Nbd2 {[%clk 0:02:51]}  Nd7 {[%clk 0:02:51]} 11. a3 {[%clk 0:02:47]}  Qc7 {[%clk 0:02:50]} 12. Qe2 {[%clk 0:02:42]}  b5 {[%clk 0:02:42]} 13. Ba2 {[%clk 0:02:40]}  c5 {[%clk 0:02:25]} 14. c4 {[%clk 0:02:32]}  bxc4 {[%clk 0:02:24]} 15. Nxc4 {[%clk 0:02:33]}  Bb7 {[%clk 0:02:24]} 16. Bd2 {[%clk 0:02:19]}  Ba6 {[%clk 0:02:10]} 17. Rac1 {[%clk 0:02:03]}  Rab8 {[%clk 0:01:58]} 18. Qe4 {[%clk 0:01:52]}  Bxc4 {[%clk 0:01:02]} 19. Bxc4 {[%clk 0:01:33]}  Rxb2 {[%clk 0:00:53]} 20. Bxd5 {[%clk 0:01:28]}  exd5 {[%clk 0:00:53]} 21. Qxd5 {[%clk 0:01:29]}  Qb7 {[%clk 0:00:51]} 22. Qxb7 {[%clk 0:01:22]}  Rxb7 {[%clk 0:00:51]} 23. e6 {[%clk 0:01:23]}  fxe6 {[%clk 0:00:47]} 24. Rxe6 {[%clk 0:00:52]}  Bb2 {[%clk 0:00:40]} 25. Rb1 {[%clk 0:00:47]}  c4 {[%clk 0:00:40]} 26. Bc3 {[%clk 0:00:46]}  Nc5 {[%clk 0:00:31]} 27. Rc6 {[%clk 0:00:45]}  Bxc3 {[%clk 0:00:31]} 28. Rxb7 {[%clk 0:00:41]}  Nxb7 {[%clk 0:00:30]} 29. Rxc4 {[%clk 0:00:42]}  Ba5 {[%clk 0:00:30]} 0-1


[Site "https://www.chess.com"]

[Event "Titled Tuesday Blitz May 31 Late 2022"]
[White "Levine, David"]
[Black "Prydun, Andriy"]
[WhiteFideId "2011611"]
[BlackFideId "14145898"]
[WhiteElo "2172"]
[BlackElo "2063"]
[Result "0-1"]
[Round "11"]
[TimeControl "180+1"]
[Date "2022.06.01"]
[WhiteClock "0:00:01"]
[BlackClock "0:00:03"]

1. d4 {[%clk 0:03:00]}  d5 {[%clk 0:02:35]} 2. c4 {[%clk 0:03:00]}  c6 {[%clk 0:02:35]} 3. Nf3 {[%clk 0:02:59]}  Nf6 {[%clk 0:02:35]} 4. Qc2 {[%clk 0:02:59]}  a6 {[%clk 0:02:34]} 5. g3 {[%clk 0:02:55]}  Bg4 {[%clk 0:02:21]} 6. Ne5 {[%clk 0:02:52]}  Be6 {[%clk 0:02:21]} 7. Bg2 {[%clk 0:02:51]}  dxc4 {[%clk 0:02:19]} 8. e3 {[%clk 0:02:47]}  Bd5 {[%clk 0:02:18]} 9. e4 {[%clk 0:02:40]}  Be6 {[%clk 0:02:17]} 10. Be3 {[%clk 0:02:28]}  b5 {[%clk 0:02:17]} 11. h3 {[%clk 0:02:18]}  g6 {[%clk 0:01:56]} 12. O-O {[%clk 0:02:11]}  Bg7 {[%clk 0:01:56]} 13. f4 {[%clk 0:02:12]}  O-O {[%clk 0:01:55]} 14. Nc3 {[%clk 0:02:01]}  Qc8 {[%clk 0:01:40]} 15. g4 {[%clk 0:01:59]}  Qc7 {[%clk 0:01:26]} 16. f5 {[%clk 0:01:53]}  Bc8 {[%clk 0:01:24]} 17. Bf4 {[%clk 0:01:51]}  Qb6 {[%clk 0:01:24]} 18. Rad1 {[%clk 0:01:48]}  Bb7 {[%clk 0:01:22]} 19. Kh2 {[%clk 0:01:39]}  c5 {[%clk 0:00:46]} 20. d5 {[%clk 0:01:28]}  Nbd7 {[%clk 0:00:40]} 21. g5 {[%clk 0:01:13]}  Nxe5 {[%clk 0:00:38]} 22. Bxe5 {[%clk 0:01:13]}  Ng4+ {[%clk 0:00:36]} 23. hxg4 {[%clk 0:01:10]}  Bxe5+ {[%clk 0:00:36]} 24. Kh1 {[%clk 0:01:07]}  Kg7 {[%clk 0:00:20]} 25. Qf2 {[%clk 0:01:04]}  Rh8 {[%clk 0:00:17]} 26. d6 {[%clk 0:00:53]}  exd6 {[%clk 0:00:13]} 27. f6+ {[%clk 0:00:53]}  Kg8 {[%clk 0:00:11]} 28. Qe3 {[%clk 0:00:35]}  Re8 {[%clk 0:00:07]} 29. Nd5 {[%clk 0:00:30]}  Qd8 {[%clk 0:00:05]} 30. Ne7+ {[%clk 0:00:21]}  Rxe7 {[%clk 0:00:05]} 31. fxe7 {[%clk 0:00:21]}  Qxe7 {[%clk 0:00:05]} 32. Bh3 {[%clk 0:00:17]}  Kg7 {[%clk 0:00:05]} 33. Kg2 {[%clk 0:00:17]}  h6 {[%clk 0:00:05]} 34. gxh6+ {[%clk 0:00:15]}  Rxh6 {[%clk 0:00:06]} 35. Rh1 {[%clk 0:00:15]}  Qh4 {[%clk 0:00:02]} 36. Rdf1 {[%clk 0:00:12]}  Bc8 {[%clk 0:00:02]} 37. Qf3 {[%clk 0:00:09]}  Be6 {[%clk 0:00:02]} 38. Qf2 {[%clk 0:00:03]}  Qg5 {[%clk 0:00:02]} 39. Qf3 {[%clk 0:00:03]}  Rh4 {[%clk 0:00:02]} 40. Rf2 {[%clk 0:00:01]}  Bxg4 {[%clk 0:00:03]} 0-1


[Site "https://www.chess.com"]

[Event "Titled Tuesday Blitz May 31 Late 2022"]
[White "Mikhalsky, Vladimir"]
[Black "Karttunen, Mika"]
[WhiteFideId "14144352"]
[BlackFideId "502081"]
[WhiteElo "2301"]
[BlackElo "2343"]
[Result "1-0"]
[Round "11"]
[TimeControl "180+1"]
[Date "2022.05.31"]
[WhiteClock "0:01:03"]
[BlackClock "0:00:36"]

1. d4 {[%clk 0:03:00]}  Nf6 {[%clk 0:02:58]} 2. c4 {[%clk 0:03:00]}  g6 {[%clk 0:02:58]} 3. f3 {[%clk 0:02:59]}  Bg7 {[%clk 0:02:56]} 4. e4 {[%clk 0:02:59]}  d6 {[%clk 0:02:56]} 5. Nc3 {[%clk 0:03:00]}  O-O {[%clk 0:02:56]} 6. Be3 {[%clk 0:03:00]}  Nbd7 {[%clk 0:02:54]} 7. Qd2 {[%clk 0:03:00]}  e5 {[%clk 0:02:52]} 8. d5 {[%clk 0:03:00]}  h5 {[%clk 0:02:43]} 9. Bd3 {[%clk 0:02:55]}  a5 {[%clk 0:02:38]} 10. Nge2 {[%clk 0:02:53]}  Nc5 {[%clk 0:02:30]} 11. Bc2 {[%clk 0:02:53]}  Bd7 {[%clk 0:02:28]} 12. O-O-O {[%clk 0:02:52]}  a4 {[%clk 0:02:16]} 13. h3 {[%clk 0:02:48]}  Qb8 {[%clk 0:02:08]} 14. g4 {[%clk 0:02:42]}  b5 {[%clk 0:02:06]} 15. cxb5 {[%clk 0:02:31]}  Bxb5 {[%clk 0:02:05]} 16. Nxb5 {[%clk 0:02:32]}  Qxb5 {[%clk 0:02:05]} 17. Nc3 {[%clk 0:02:31]}  Qc4 {[%clk 0:02:00]} 18. Qe2 {[%clk 0:02:29]}  Qb4 {[%clk 0:01:57]} 19. Qb5 {[%clk 0:02:23]}  Rfb8 {[%clk 0:01:50]} 20. Qxb4 {[%clk 0:02:22]}  Rxb4 {[%clk 0:01:51]} 21. Bxc5 {[%clk 0:02:14]}  dxc5 {[%clk 0:01:51]} 22. g5 {[%clk 0:02:08]}  Ne8 {[%clk 0:01:46]} 23. a3 {[%clk 0:02:07]}  Rc4 {[%clk 0:01:46]} 24. Bd3 {[%clk 0:02:05]}  Rd4 {[%clk 0:01:46]} 25. Ne2 {[%clk 0:01:58]}  Nd6 {[%clk 0:01:41]} 26. Nxd4 {[%clk 0:01:58]}  exd4 {[%clk 0:01:41]} 27. f4 {[%clk 0:01:41]}  c4 {[%clk 0:00:53]} 28. e5 {[%clk 0:01:40]}  cxd3 {[%clk 0:00:53]} 29. exd6 {[%clk 0:01:40]}  cxd6 {[%clk 0:00:54]} 30. Rxd3 {[%clk 0:01:32]}  Re8 {[%clk 0:00:53]} 31. Kd2 {[%clk 0:01:27]}  Re4 {[%clk 0:00:53]} 32. Rf1 {[%clk 0:01:27]}  h4 {[%clk 0:00:47]} 33. b3 {[%clk 0:01:24]}  axb3 {[%clk 0:00:42]} 34. Rxb3 {[%clk 0:01:24]}  Re7 {[%clk 0:00:36]} 35. a4 {[%clk 0:01:18]}  Ra7 {[%clk 0:00:35]} 36. Ra1 {[%clk 0:01:13]}  d3 {[%clk 0:00:35]} 37. Ra2 {[%clk 0:01:13]}  Bd4 {[%clk 0:00:35]} 38. Kxd3 {[%clk 0:01:12]}  Bc5 {[%clk 0:00:35]} 39. a5 {[%clk 0:01:11]}  Re7 {[%clk 0:00:35]} 40. a6 {[%clk 0:01:08]}  Re3+ {[%clk 0:00:35]} 41. Kc4 {[%clk 0:01:07]}  Re4+ {[%clk 0:00:36]} 42. Kb5 {[%clk 0:01:06]}  Rxf4 {[%clk 0:00:36]} 43. a7 {[%clk 0:01:03]}  Bxa7 {[%clk 0:00:36]} 44. Rxa7 {[%clk 0:01:03]} 1-0


[Site "https://www.chess.com"]

[Event "Titled Tuesday Blitz May 31 Late 2022"]
[White "Mirza, Diana"]
[Black "Gomez Dieguez, David"]
[WhiteFideId "2503999"]
[BlackFideId "22223630"]
[WhiteElo "1813"]
[BlackElo "2115"]
[Result "0-1"]
[Round "11"]
[TimeControl "180+1"]
[Date "2022.06.01"]
[WhiteClock "0:00:07"]
[BlackClock "0:00:03"]

1. b4 {[%clk 0:03:00]}  d5 {[%clk 0:02:56]} 2. Bb2 {[%clk 0:03:00]}  Nf6 {[%clk 0:02:56]} 3. e3 {[%clk 0:03:00]}  Bf5 {[%clk 0:02:56]} 4. c4 {[%clk 0:02:59]}  e6 {[%clk 0:02:55]} 5. c5 {[%clk 0:02:58]}  c6 {[%clk 0:02:54]} 6. Nf3 {[%clk 0:02:57]}  Be7 {[%clk 0:02:54]} 7. Be2 {[%clk 0:02:57]}  h6 {[%clk 0:02:54]} 8. O-O {[%clk 0:02:57]}  O-O {[%clk 0:02:55]} 9. a4 {[%clk 0:02:54]}  a5 {[%clk 0:02:54]} 10. Nd4 {[%clk 0:02:46]}  axb4 {[%clk 0:02:49]} 11. Nxf5 {[%clk 0:02:46]}  exf5 {[%clk 0:02:50]} 12. Qc2 {[%clk 0:02:39]}  Ne4 {[%clk 0:02:39]} 13. f3 {[%clk 0:02:37]}  Nxc5 {[%clk 0:02:36]} 14. Qxf5 {[%clk 0:02:30]}  Qd7 {[%clk 0:02:26]} 15. Qh5 {[%clk 0:02:05]}  Rxa4 {[%clk 0:02:14]} 16. Rxa4 {[%clk 0:02:02]}  Nxa4 {[%clk 0:02:15]} 17. Ba1 {[%clk 0:01:56]}  Qe6 {[%clk 0:02:11]} 18. f4 {[%clk 0:01:47]}  Bf6 {[%clk 0:02:05]} 19. f5 {[%clk 0:01:46]}  Qe7 {[%clk 0:02:05]} 20. Bxf6 {[%clk 0:01:37]}  Qxf6 {[%clk 0:02:06]} 21. d4 {[%clk 0:01:34]}  Qg5 {[%clk 0:01:59]} 22. Qh3 {[%clk 0:01:31]}  Re8 {[%clk 0:01:51]} 23. Rf3 {[%clk 0:01:29]}  Nd7 {[%clk 0:01:46]} 24. Rg3 {[%clk 0:01:23]}  Qf6 {[%clk 0:01:44]} 25. Nd2 {[%clk 0:01:13]}  Nc3 {[%clk 0:01:42]} 26. Bd3 {[%clk 0:01:08]}  Ne4 {[%clk 0:01:35]} 27. Bxe4 {[%clk 0:01:02]}  dxe4 {[%clk 0:01:35]} 28. Qg4 {[%clk 0:00:55]}  b3 {[%clk 0:01:03]} 29. Nxe4 {[%clk 0:00:39]}  Rxe4 {[%clk 0:01:02]} 30. Qxe4 {[%clk 0:00:39]}  Kh7 {[%clk 0:00:44]} 31. Qb1 {[%clk 0:00:34]}  b6 {[%clk 0:00:30]} 32. e4 {[%clk 0:00:27]}  Qd6 {[%clk 0:00:26]} 33. Rxb3 {[%clk 0:00:19]}  Qxd4+ {[%clk 0:00:26]} 34. Kf1 {[%clk 0:00:18]}  c5 {[%clk 0:00:25]} 35. f6 {[%clk 0:00:14]}  Qxf6+ {[%clk 0:00:24]} 36. Rf3 {[%clk 0:00:12]}  Qd4 {[%clk 0:00:23]} 37. e5+ {[%clk 0:00:11]}  Kg8 {[%clk 0:00:20]} 38. Qf5 {[%clk 0:00:07]}  Nxe5 {[%clk 0:00:18]} 39. Qc8+ {[%clk 0:00:03]}  Kh7 {[%clk 0:00:18]} 40. Qf5+ {[%clk 0:00:04]}  g6 {[%clk 0:00:18]} 41. Qf6 {[%clk 0:00:02]}  Nxf3 {[%clk 0:00:14]} 42. Qxf7+ {[%clk 0:00:02]}  Qg7 {[%clk 0:00:12]} 43. Qxf3 {[%clk 0:00:02]}  Qe7 {[%clk 0:00:10]} 44. Qc6 {[%clk 0:00:02]}  Kg7 {[%clk 0:00:06]} 45. Qxb6 {[%clk 0:00:02]}  Qf6+ {[%clk 0:00:06]} 46. Qxf6+ {[%clk 0:00:01]}  Kxf6 {[%clk 0:00:07]} 47. Ke2 {[%clk 0:00:01]}  Ke5 {[%clk 0:00:08]} 48. Kd3 {[%clk 0:00:02]}  Kd5 {[%clk 0:00:08]} 49. Kc3 {[%clk 0:00:02]}  g5 {[%clk 0:00:08]} 50. g4 {[%clk 0:00:02]}  c4 {[%clk 0:00:06]} 51. h3 {[%clk 0:00:01]}  Kc5 {[%clk 0:00:06]} 52. Kc2 {[%clk 0:00:02]}  Kd4 {[%clk 0:00:06]} 53. Kd2 {[%clk 0:00:02]}  c3+ {[%clk 0:00:05]} 54. Kc2 {[%clk 0:00:02]}  Kc4 {[%clk 0:00:06]} 55. Kc1 {[%clk 0:00:03]}  Kd3 {[%clk 0:00:07]} 56. Kd1 {[%clk 0:00:03]}  Ke3 {[%clk 0:00:08]} 57. Kc2 {[%clk 0:00:03]}  Kf3 {[%clk 0:00:09]} 58. Kxc3 {[%clk 0:00:04]}  Kg3 {[%clk 0:00:09]} 59. Kd2 {[%clk 0:00:05]}  Kxh3 {[%clk 0:00:10]} 60. Ke2 {[%clk 0:00:06]}  Kxg4 {[%clk 0:00:11]} 61. Kf2 {[%clk 0:00:06]}  Kf4 {[%clk 0:00:11]} 62. Kg2 {[%clk 0:00:07]}  h5 {[%clk 0:00:11]} 63. Kh3 {[%clk 0:00:08]}  Kf3 {[%clk 0:00:11]} 64. Kh2 {[%clk 0:00:09]}  g4 {[%clk 0:00:10]} 65. Kh1 {[%clk 0:00:09]}  Kg3 {[%clk 0:00:10]} 66. Kg1 {[%clk 0:00:09]}  h4 {[%clk 0:00:10]} 67. Kh1 {[%clk 0:00:10]}  Kh3 {[%clk 0:00:10]} 68. Kg1 {[%clk 0:00:09]}  Kg3 {[%clk 0:00:10]} 69. Kh1 {[%clk 0:00:10]}  Kf4 {[%clk 0:00:11]} 70. Kh2 {[%clk 0:00:10]}  Ke3 {[%clk 0:00:11]} 71. Kg2 {[%clk 0:00:10]}  g3 {[%clk 0:00:08]} 72. Kh1 {[%clk 0:00:08]}  Kf4 {[%clk 0:00:05]} 73. Kg2 {[%clk 0:00:08]}  Kg4 {[%clk 0:00:05]} 74. Kh1 {[%clk 0:00:08]}  h3 {[%clk 0:00:05]} 75. Kg1 {[%clk 0:00:08]}  g2 {[%clk 0:00:03]} 76. Kh2 {[%clk 0:00:08]}  Kf3 {[%clk 0:00:02]} 77. Kg1 {[%clk 0:00:07]}  h2+ {[%clk 0:00:01]} 78. Kxh2 {[%clk 0:00:06]}  Kf2 {[%clk 0:00:02]} 79. Kh3 {[%clk 0:00:06]}  g1=Q {[%clk 0:00:03]} 80. Kh4 {[%clk 0:00:07]}  Kf3 {[%clk 0:00:03]} 0-1


[Site "https://www.chess.com"]